bitfinex/quotes_SOLUSD_20240605
["timestamp","ask_amount","ask_price","bid_price","bid_amount"]
[1717596011630,22.0813,172.44,172.29,45.0]
[1717596011828,2.1462,172.39,172.29,45.0]
[1717596012060,0.4,172.44,172.29,45.0]
[1717596012225,0.4,172.44,172.3,20.17]
[1717596012548,2.1461,172.4,172.31,45.0]
[1717596012753,2.1458,172.43,172.32,0.17]
[1717596012979,0.4,172.44,172.32,0.17]
[1717596013190,2.5456,172.44,172.36,2.1465]
[1717596013472,2.5456,172.44,172.32,20.17]
[1717596013473,0.4,172.44,172.32,20.17]
[1717596013632,0.4,172.44,172.33,45.17]
[1717596013952,0.4,172.44,172.34,20.17]
[1717596014148,0.4,172.44,172.35,45.0]
[1717596014352,0.4,172.44,172.36,20.17]
[1717596014562,0.4,172.44,172.37,45.0]
[1717596016632,0.4,172.44,172.38,55.06]
[1717596017039,0.4,172.44,172.39,45.0]
[1717596017236,0.4,172.44,172.4,20.34]
[1717596017655,0.4,172.44,172.28,22.3089152]
[1717596017847,0.4,172.44,172.28,23.47058586]
[1717596018154,0.4,172.44,172.32,34.72]
[1717596018371,0.4,172.44,172.35,34.72]
[1717596018876,0.4,172.44,172.28,22.3089152]
[1717596019050,0.4,172.44,172.29,20.0]
[1717596019362,0.4,172.44,172.3,34.89]
[1717596019664,0.4,172.44,172.28,35.2089152]
[1717596020047,0.4,172.44,172.31,34.72]
[1717596020553,0.4,172.44,172.28,0.4889152]
[1717596020554,0.4,172.44,172.29,34.72]
[1717596020733,0.4,172.44,172.3,54.72]
[1717596020935,0.4,172.44,172.3,20.0]
[1717596021165,0.4,172.44,172.29,20.0]
[1717596021334,0.4,172.44,172.28,0.4889152]
[1717596021335,2.3158,172.43,172.28,0.4889152]
[1717596021662,21.6818,172.42,172.28,0.4889152]
[1717596021838,2.1463,172.39,172.28,0.4889152]
[1717596022037,2.3164,172.38,172.28,0.4889152]
[1717596022354,0.17,172.38,172.28,0.4889152]
[1717596022660,20.0,172.41,172.28,0.4889152]
[1717596022661,2.146,172.41,172.28,0.4889152]
[1717596023035,0.4,172.44,172.28,0.4889152]
[1717596023230,0.4,172.44,172.29,0.17]
[1717596023460,0.4,172.44,172.29,35.06]
[1717596023660,0.4,172.44,172.31,34.72]
[1717596023960,0.4,172.44,172.32,55.06]
[1717596024159,0.4,172.44,172.32,35.06]
[1717596024345,0.4,172.44,172.43,2.1457]
[1717596024539,0.4,172.44,172.35,20.0]
[1717596024738,2.5456,172.44,172.32,0.34]
[1717596024962,2.1459,172.42,172.31,0.34]
[1717596025138,0.4,172.44,172.31,0.17]
[1717596025465,2.1459,172.42,172.31,0.17]
[1717596025636,2.146,172.41,172.22,0.03611295]
[1717596025860,0.17,172.42,172.22,0.03611295]
[1717596026067,0.34,172.43,172.22,0.03611295]
[1717596026351,2.1461,172.4,172.22,34.75611295]
[1717596026547,0.17,172.41,172.24,34.72]
[1717596026786,20.34,172.43,172.25,20.0]
[1717596027075,0.34,172.43,172.25,54.72]
[1717596027279,22.4858,172.43,172.37,2.1465]
[1717596027482,2.4858,172.43,172.37,2.1465]
[1717596027653,2.5457,172.44,172.29,0.34]
[1717596027851,0.4,172.44,172.29,0.34]
[1717596028054,2.146,172.41,172.29,0.34]
[1717596028261,15.0216,172.42,172.22,34.75611295]
[1717596028448,2.1466,172.37,172.22,34.75611295]
[1717596028765,2.1465,172.37,172.22,34.75611295]
[1717596028949,0.17,172.38,172.22,0.03611295]
[1717596029155,0.34,172.38,172.22,0.03611295]
[1717596029350,0.34,172.38,172.31,2.1472]
[1717596029351,2.1465,172.37,172.31,2.1472]
[1717596029679,4.469342,172.38,172.32,2.1471]
[1717596029883,2.322842,172.38,172.22,0.03611295]
[1717596030187,2.1463,172.39,172.33,2.1469]
[1717596030476,2.1463,172.39,172.22,0.03611295]
[1717596030477,2.1462,172.4,172.27,0.17]
[1717596030786,22.1459,172.42,172.29,0.34]
[1717596030985,4.468058,172.43,172.29,0.34]
[1717596031153,2.322258,172.43,172.29,0.34]
[1717596031483,0.4,172.44,172.29,0.34]
[1717596031852,0.4,172.44,172.29,35.89521282]
[1717596032080,0.4,172.44,172.31,34.72]
[1717596032288,0.4,172.44,172.32,20.34]
[1717596032457,0.4,172.44,172.32,20.17]
[1717596032659,0.4,172.44,172.33,0.17]
[1717596033089,0.4,172.44,172.33,20.17]
[1717596033379,0.4,172.44,172.34,20.17]
[1717596033553,0.4,172.44,172.33,0.17]
[1717596033554,2.1458,172.43,172.33,0.17]
[1717596033886,4.6913,172.44,172.21,0.4]
[1717596034050,2.1462,172.4,172.21,0.4]
[1717596034251,2.1463,172.39,172.21,0.4]
[1717596034475,20.0,172.43,172.21,0.4]
[1717596034476,45.9736,172.43,172.21,0.4]
[1717596034668,2.1463,172.39,172.21,0.4]
[1717596035067,2.1463,172.39,172.21,35.12]
[1717596035270,2.1464,172.38,172.23,34.72]
[1717596035469,2.1468,172.35,172.24,20.0]
[1717596035675,2.1467,172.36,172.22,20.03611295]
[1717596035888,2.1467,172.36,172.22,0.03611295]
[1717596036255,0.17,172.37,172.22,0.03611295]
[1717596036455,0.34,172.37,172.22,0.03611295]
[1717596036674,0.17,172.36,172.22,0.03611295]
[1717596036888,0.17,172.38,172.22,0.03611295]
[1717596037060,2.1465,172.37,172.3,2.1473]
[1717596037266,20.0,172.38,172.22,0.03611295]
[1717596037585,22.1464,172.38,172.32,2.147]
[1717596037880,20.0,172.41,172.31,2.1472]
[1717596038182,2.1467,172.36,172.22,0.03611295]
[1717596038585,2.1465,172.37,172.22,0.03611295]
[1717596038757,2.3166,172.36,172.22,0.03611295]
[1717596039086,2.147,172.34,172.22,0.03611295]
[1717596039266,2.3166,172.36,172.22,0.03611295]
[1717596039451,2.1469,172.35,172.22,0.03611295]
[1717596039652,0.17,172.36,172.22,0.03611295]
[1717596039868,2.1468,172.35,172.29,2.1474]
[1717596040190,2.3169,172.34,172.28,2.6364152]
[1717596040485,2.317,172.34,172.28,2.6364152]
[1717596040691,0.17,172.34,172.29,2.1474]
[1717596040872,2.1468,172.35,172.29,2.1474]
[1717596041070,20.0,172.37,172.28,0.4889152]
[1717596041071,0.17,172.34,172.28,0.4889152]
[1717596041486,2.147,172.33,172.28,0.4889152]
[1717596041674,2.1472,172.32,172.28,0.4889152]
[1717596041873,0.17,172.34,172.28,0.4889152]
[1717596042192,2.1471,172.33,172.28,0.4889152]
[1717596042365,0.34,172.34,172.28,0.4889152]
[1717596042564,0.17,172.34,172.28,0.4889152]
[1717596042802,0.34,172.34,172.28,0.4889152]
[1717596042973,2.1471,172.33,172.28,0.4889152]
[1717596043396,20.0,172.35,172.28,0.4889152]
[1717596043706,2.1465,172.37,172.28,0.4889152]
[1717596044002,2.1465,172.37,172.31,2.1472]
[1717596044206,2.1464,172.38,172.32,2.1471]
[1717596044583,2.1465,172.37,172.31,2.1472]
[1717596044768,2.1467,172.36,172.3,2.1473]
[1717596044969,2.1466,172.37,172.31,2.1472]
[1717596045295,2.1466,172.37,172.28,0.4889152]
[1717596045468,2.1466,172.36,172.28,0.4889152]
[1717596045786,2.1467,172.35,172.28,0.4889152]
[1717596046101,2.1469,172.34,172.28,0.4889152]
[1717596046264,20.0,172.37,172.28,0.4889152]
[1717596046265,24.2932,172.37,172.28,0.4889152]
[1717596046589,2.1469,172.34,172.28,0.4889152]
[1717596046788,24.2932,172.37,172.28,0.4889152]
[1717596046789,2.1468,172.35,172.28,0.4889152]
[1717596047187,20.0,172.37,172.28,0.4889152]
[1717596047392,2.1465,172.37,172.28,0.4889152]
[1717596047569,2.1465,172.37,172.32,2.1471]
[1717596048191,2.1465,172.37,172.31,2.1472]
[1717596048493,2.1465,172.37,172.28,0.4889152]
[1717596048692,2.1465,172.37,172.31,2.1472]
[1717596048897,2.1464,172.38,172.32,2.1471]
[1717596049071,2.1465,172.37,172.31,2.1472]
[1717596049266,2.1465,172.37,172.32,2.1471]
[1717596049474,8.5839,172.42,172.28,0.4889152]
[1717596049798,2.1462,172.4,172.29,0.17]
[1717596050105,2.1462,172.4,172.29,0.34]
[1717596050397,2.1459,172.42,172.29,0.34]
[1717596051080,0.4,172.44,172.29,1.32652942]
[1717596051606,0.4,172.44,172.29,0.34]
[1717596051771,0.4,172.44,172.3,34.72]
[1717596052091,0.4,172.44,172.31,0.34]
[1717596052298,0.4,172.44,172.31,20.34]
[1717596052976,0.4,172.44,172.31,0.34]
[1717596053181,2.1463,172.39,172.28,0.4889152]
[1717596053382,2.1463,172.39,172.28,20.4889152]
[1717596053580,2.1464,172.38,172.28,0.4889152]
[1717596053799,10.7296,172.42,172.28,0.4889152]
[1717596053800,4.2918,172.42,172.28,0.4889152]
[1717596053996,0.17,172.43,172.28,0.4889152]
[1717596054204,2.1459,172.42,172.28,0.4889152]
[1717596054501,2.1462,172.4,172.28,0.4889152]
[1717596054705,2.1462,172.39,172.28,0.4889152]
[1717596054887,2.1462,172.39,172.29,0.34]
[1717596055201,2.1463,172.39,172.29,0.17]
[1717596055400,6.4378,172.42,172.28,0.4889152]
[1717596055603,2.1464,172.38,172.28,0.4889152]
[1717596055811,4.2927,172.39,172.28,0.4889152]
[1717596056106,2.1465,172.38,172.28,0.4889152]
[1717596056307,31.0706,172.41,172.28,0.4889152]
[1717596056308,2.1463,172.39,172.28,0.4889152]
[1717596056709,20.0,172.4,172.28,0.4889152]
[1717596056885,2.3163,172.39,172.28,0.4889152]
[1717596057216,2.1463,172.39,172.28,0.4889152]
[1717596057514,2.1464,172.38,172.28,0.4889152]
[1717596058898,2.1463,172.39,172.28,0.4889152]
[1717596059110,2.1464,172.38,172.28,0.4889152]
[1717596059910,2.1464,172.39,172.28,0.4889152]
[1717596060117,2.1464,172.38,172.28,0.4889152]
[1717596060282,26.6081,172.41,172.28,0.4889152]
[1717596060487,2.1467,172.35,172.28,0.4889152]
[1717596061084,2.1467,172.36,172.28,0.4889152]
[1717596061406,2.3165,172.37,172.28,0.4889152]
[1717596061584,2.3166,172.37,172.28,0.4889152]
[1717596061788,0.17,172.37,172.28,0.4889152]
[1717596062001,2.1468,172.35,172.28,0.4889152]
[1717596062220,2.147,172.33,172.28,0.4889152]
[1717596062385,6.4403,172.35,172.28,0.4889152]
[1717596062698,2.1472,172.32,172.28,0.4889152]
[1717596063086,2.1473,172.31,172.28,0.4889152]
[1717596063799,20.0,172.34,172.29,2.1475]
[1717596064000,2.147,172.33,172.28,2.6365152]
[1717596064311,10.7337,172.36,172.28,2.6365152]
[1717596064312,2.1471,172.32,172.28,2.6365152]
[1717596064483,2.1471,172.33,172.28,0.4889152]
[1717596064689,2.1471,172.33,172.28,2.6364152]
[1717596064900,2.1471,172.33,172.28,2.6365152]
[1717596065098,4.2939,172.34,172.28,0.4889152]
[1717596065314,0.17,172.33,172.28,0.4889152]
[1717596065518,2.1473,172.31,172.28,0.4889152]
[1717596065989,2.1471,172.32,172.28,0.4889152]
[1717596066192,20.17,172.35,172.28,0.4889152]
[1717596066491,2.1471,172.32,172.28,0.4889152]
[1717596066812,2.1473,172.31,172.28,0.4889152]
[1717596067115,4.2943,172.32,172.28,0.4889152]
[1717596067327,2.1472,172.32,172.28,0.4889152]
[1717596067498,2.1473,172.31,172.28,0.4889152]
[1717596067898,4.2943,172.32,172.28,0.4889152]
[1717596068096,0.17,172.31,172.28,0.4889152]
[1717596068298,2.1474,172.3,172.28,0.4889152]
[1717596068525,2.1473,172.31,172.28,0.4889152]
[1717596068695,2.1471,172.32,172.28,0.4889152]
[1717596069021,4.2934,172.36,172.28,0.4889152]
[1717596069210,2.147,172.33,172.28,2.6364152]
[1717596069410,77.25546447,172.39,172.28,2.6364152]
[1717596069411,2.1472,172.32,172.28,0.4889152]
[1717596069614,2.1473,172.31,172.28,0.4889152]
[1717596069814,2.1475,172.29,172.28,0.4889152]
[1717596070592,2.1475,172.3,172.25,2.1479]
[1717596070799,2.1475,172.29,172.24,2.1481]
[1717596070997,2.1476,172.28,172.23,2.1482]
[1717596071219,2.1478,172.27,172.23,2.1482]
[1717596071417,2.1477,172.28,172.23,2.1482]
[1717596072314,2.1476,172.29,172.24,2.1481]
[1717596072998,2.1476,172.29,172.25,2.148]
[1717596073299,2.1476,172.29,172.24,2.148]
[1717596073605,2.1477,172.28,172.23,2.1482]
[1717596073826,2.1477,172.28,172.24,2.1481]
[1717596074121,2.1477,172.28,172.22,0.03611295]
[1717596074122,0.17,172.27,172.22,0.03611295]
[1717596074298,2.1479,172.26,172.22,0.03611295]
[1717596074499,20.0,172.27,172.22,0.03611295]
[1717596074699,22.1477,172.27,172.22,2.18441295]
[1717596075007,2.1479,172.26,172.22,0.03611295]
[1717596075306,2.1475,172.3,172.25,2.148]
[1717596075619,8.5882,172.33,172.22,0.03611295]
[1717596075620,24.2944,172.32,172.22,0.03611295]
[1717596075916,24.2944,172.32,172.22,2.18441295]
[1717596075917,2.1478,172.27,172.22,2.18441295]
[1717596076116,2.1477,172.28,172.23,2.1482]
[1717596076324,20.0,172.3,172.25,2.1479]
[1717596076501,2.1473,172.31,172.26,2.1478]
[1717596076905,2.1476,172.29,172.24,2.148]
[1717596077198,2.1476,172.28,172.23,2.1482]
[1717596077416,2.1476,172.29,172.24,2.1481]
[1717596078005,2.1478,172.27,172.22,2.18441295]
[1717596078638,2.1479,172.26,172.22,0.03611295]
[1717596079101,2.1478,172.27,172.22,2.18441295]
[1717596079502,2.1477,172.28,172.23,2.1482]
[1717596079697,2.1478,172.27,172.22,2.18441295]
[1717596079892,2.1477,172.28,172.23,2.1482]
[1717596080096,2.1477,172.28,172.24,2.1481]
[1717596080295,2.1478,172.27,172.23,2.1482]
[1717596080492,2.1478,172.27,172.22,2.18441295]
[1717596081224,2.1479,172.26,172.22,0.03611295]
[1717596081629,2.1479,172.26,172.22,2.18451295]
[1717596081797,2.1478,172.27,172.22,2.18451295]
[1717596081994,2.1477,172.28,172.23,2.1482]
[1717596082603,2.1478,172.27,172.22,2.18441295]
[1717596082807,2.1476,172.28,172.23,2.1482]
[1717596083015,20.0,172.29,172.25,2.1479]
[1717596083200,24.2946,172.31,172.24,2.1481]
[1717596083407,2.1476,172.29,172.25,2.148]
[1717596083619,2.1476,172.29,172.24,2.1481]
[1717596083819,20.0,172.31,172.24,2.1481]
[1717596084132,2.1476,172.29,172.24,2.1481]
[1717596084317,4.2952,172.29,172.22,0.03611295]
[1717596084500,2.148,172.25,172.22,0.03611295]
[1717596084826,4.2953,172.28,172.22,0.03611295]
[1717596085129,20.0,172.28,172.23,2.1482]
[1717596085299,22.1476,172.28,172.23,2.1482]
[1717596085506,2.1477,172.27,172.23,2.1482]
[1717596086114,2.1477,172.27,172.22,2.18441295]
[1717596086331,2.1476,172.28,172.23,2.1482]
[1717596086515,20.0,172.29,172.22,2.18441295]
[1717596086516,2.1478,172.27,172.22,2.18441295]
[1717596086702,2.1477,172.28,172.23,2.1482]
[1717596087101,2.1478,172.27,172.23,2.1482]
[1717596087301,2.1479,172.26,172.22,2.18441295]
[1717596087522,2.1479,172.26,172.22,0.03611295]
[1717596087828,2.1478,172.27,172.22,2.18441295]
[1717596088028,2.1481,172.25,172.22,0.03611295]
[1717596088207,2.1482,172.23,172.22,0.03611295]
[1717596088620,2.1481,172.24,172.22,0.03611295]
[1717596089323,22.1478,172.27,172.22,2.18431295]
[1717596089508,2.1478,172.27,172.23,2.1482]
[1717596089833,2.1477,172.28,172.23,2.1482]
[1717596090005,20.0,172.29,172.22,0.03611295]
[1717596090207,2.1481,172.25,172.22,0.03611295]
[1717596090520,2.1479,172.26,172.22,2.18451295]
[1717596090721,2.148,172.25,172.22,0.03611295]
[1717596091322,2.1481,172.25,172.22,0.03611295]
[1717596091602,2.1482,172.23,172.22,0.03611295]
[1717596092111,2.1482,172.24,172.22,0.03611295]
[1717596092430,2.1482,172.23,172.22,0.03611295]
[1717596092734,6.6147,172.23,172.22,0.03611295]
[1717596093201,26.4447,172.23,172.22,0.03611295]
[1717596093825,26.6147,172.23,172.22,0.03611295]
[1717596094104,41.6526,172.23,172.22,0.03611295]
[1717596094321,41.8226,172.23,172.22,0.03611295]
[1717596100635,20.0,172.23,172.11,0.4]
[1717596100870,17.39,172.29,172.2,2.1486]
[1717596100871,2.1482,172.24,172.2,2.1486]
[1717596101031,60.40023233,172.32,172.12,0.17]
[1717596101224,57.40661471,172.32,172.12,0.34]
[1717596101533,10.2419186,172.36,172.12,0.34]
[1717596101534,6.4401,172.36,172.15,34.8]
[1717596101842,2.1472,172.32,172.27,2.1477]
[1717596102152,2.1474,172.3,172.26,2.1478]
[1717596102327,2.1473,172.31,172.27,2.1477]
[1717596102646,4.2938,172.34,172.25,2.1479]
[1717596102647,2.1475,172.3,172.25,2.1479]
[1717596102829,15.0313,172.31,172.17,20.0]
[1717596103019,4.2943,172.32,172.25,2.1479]
[1717596103223,8.988,172.34,172.26,2.1478]
[1717596103437,4.2945,172.32,172.18,45.34]
[1717596103646,0.4,172.34,172.22,2.1483]
[1717596103833,2.1478,172.27,172.22,2.1483]
[1717596104120,2.1478,172.27,172.23,2.1482]
[1717596104325,2.1479,172.26,172.22,2.1483]
[1717596104568,4.2954,172.28,172.21,2.1485]
[1717596104751,2.148,172.25,172.21,2.1485]
[1717596105140,2.1482,172.24,172.19,2.1486]
[1717596105449,2.1482,172.24,172.11,0.4]
[1717596105755,2.1482,172.24,172.19,2.1486]
[1717596105925,2.1482,172.24,172.2,2.1486]
[1717596106130,2.148,172.25,172.2,2.1486]
[1717596106347,2.1479,172.26,172.21,2.1485]
[1717596106546,2.1479,172.26,172.22,2.1483]
[1717596106734,0.17,172.27,172.21,2.1484]
[1717596106936,2.1484,172.22,172.11,0.4]
[1717596107133,2.1484,172.22,172.18,2.1489]
[1717596107341,0.17,172.23,172.11,0.4]
[1717596107559,20.0,172.25,172.11,0.4]
[1717596107738,2.1485,172.21,172.11,0.4]
[1717596108045,2.1484,172.22,172.17,2.1489]
[1717596108251,2.1484,172.22,172.18,2.1488]
[1717596108427,2.1485,172.21,172.11,0.4]
[1717596108633,2.1485,172.21,172.16,2.149]
[1717596108844,2.1485,172.21,172.17,2.149]
[1717596109032,2.1484,172.22,172.17,2.149]
[1717596109237,2.1485,172.21,172.17,2.149]
[1717596109645,20.34,172.24,172.17,2.149]
[1717596109646,2.1484,172.22,172.17,2.149]
[1717596109836,2.1484,172.22,172.18,2.1488]
[1717596110233,24.6365,172.24,172.16,2.1491]
[1717596110539,4.2967,172.23,172.15,2.1491]
[1717596110739,2.1486,172.21,172.16,2.1491]
[1717596110944,2.1486,172.21,172.11,0.4]
[1717596110945,2.1486,172.21,172.17,2.149]
[1717596111148,2.1486,172.2,172.16,2.1491]
[1717596111679,2.1485,172.21,172.16,2.1491]
[1717596111957,2.1485,172.21,172.17,2.149]
[1717596112544,2.1485,172.21,172.16,2.1491]
[1717596112742,2.1485,172.21,172.17,2.149]
[1717596112957,2.1486,172.2,172.16,2.1491]
[1717596114446,2.1488,172.19,172.15,2.1492]
[1717596115272,2.1487,172.2,172.16,2.149]
[1717596115563,2.1494,172.14,172.11,0.4]
[1717596115765,2.149,172.18,172.13,2.1494]
[1717596115969,17.39,172.23,172.11,0.4]
[1717596115970,45.9825,172.25,172.11,0.4]
[1717596116278,0.17,172.23,172.17,2.1489]
[1717596116440,2.1486,172.2,172.11,0.4]
[1717596116636,2.1486,172.2,172.16,2.1491]
[1717596116868,2.1485,172.21,172.16,2.1491]
[1717596117046,2.1484,172.22,172.17,2.149]
[1717596117243,22.1484,172.22,172.17,2.1489]
[1717596117540,2.1483,172.23,172.18,2.1489]
[1717596117842,2.1483,172.23,172.19,2.1487]
[1717596118038,2.1481,172.25,172.2,2.1485]
[1717596118443,2.1481,172.25,172.21,2.1485]
[1717596118768,2.1481,172.24,172.19,2.1487]
[1717596119151,2.148,172.26,172.2,2.1485]
[1717596119443,2.148,172.26,172.11,0.4]
[1717596119444,2.1481,172.24,172.19,2.1487]
[1717596120159,2.1483,172.23,172.18,2.1488]
[1717596120339,2.1483,172.23,172.17,2.149]
[1717596120546,2.1481,172.24,172.19,2.1487]
[1717596120753,2.148,172.25,172.2,2.1486]
[1717596121357,2.99361762,172.31,172.22,2.1483]
[1717596121561,10.736,172.32,172.23,2.1482]
[1717596121562,2.1475,172.29,172.23,2.1482]
[1717596121870,2.1474,172.3,172.25,2.148]
[1717596122052,2.1473,172.31,172.26,2.1478]
[1717596122845,2.1471,172.33,172.11,0.4]
[1717596123081,5.0938,172.34,172.12,59.05676043]
[1717596123246,0.4,172.34,172.28,2.1476]
[1717596123570,0.4,172.34,172.29,2.1474]
[1717596123865,0.4,172.34,172.27,2.1477]
[1717596124068,2.1471,172.32,172.28,2.1476]
[1717596124646,2.1471,172.32,172.27,2.1477]
[1717596124858,0.4,172.34,172.28,2.1476]
[1717596124859,2.147,172.33,172.28,2.1476]
[1717596125055,0.4,172.34,172.19,54.8]
[1717596125266,0.4,172.34,172.31,2.1472]
[1717596125469,0.4,172.34,172.3,2.1473]
[1717596126078,0.4,172.34,172.21,54.8]
[1717596126284,2.5469,172.34,172.29,2.1475]
[1717596126658,2.1471,172.32,172.28,2.1476]
[1717596126871,0.4,172.34,172.29,2.1475]
[1717596127066,0.4,172.34,172.3,2.1474]
[1717596127278,2.5469,172.34,172.24,45.0]
[1717596127586,0.4,172.34,172.24,45.0]
[1717596127786,0.4,172.34,172.3,2.1473]
[1717596128290,0.4,172.34,172.25,0.17]
[1717596128291,2.5469,172.34,172.29,2.1475]
[1717596128793,2.147,172.33,172.29,2.1475]
[1717596128990,2.147,172.33,172.28,2.1476]
[1717596129370,2.5469,172.34,172.29,2.1475]
[1717596129574,0.4,172.34,172.24,45.0]
[1717596129767,0.4,172.34,172.1,7.27060018]
[1717596129768,2.1474,172.3,172.26,2.1479]
[1717596129971,2.1474,172.3,172.25,2.148]
[1717596130465,2.1474,172.3,172.26,2.1479]
[1717596130671,2.1474,172.3,172.25,2.148]
[1717596130875,0.34,172.33,172.15,54.8]
[1717596131070,2.147,172.33,172.28,2.1475]
[1717596131287,2.5469,172.34,172.18,34.8]
[1717596131596,2.5469,172.34,172.2,34.8]
[1717596131887,0.4,172.34,172.31,2.1472]
[1717596132772,0.4,172.34,172.32,2.1471]
[1717596133179,0.4,172.34,172.22,2.04087362]
[1717596133382,0.4,172.34,172.32,2.147]
[1717596134692,0.4,172.34,172.24,20.0]
[1717596134897,0.4,172.34,172.25,45.34]
[1717596135193,0.4,172.34,172.26,20.0]
[1717596135374,0.4,172.34,172.33,2.147]
[1717596136600,0.4,172.34,172.33,2.317]
[1717596137173,0.4,172.34,172.33,2.487]
[1717596140278,0.4,172.34,172.33,2.317]
[1717596140806,0.4,172.34,172.33,2.487]
[1717596142190,0.4,172.34,172.33,22.487]
[1717596142499,0.4,172.44,172.33,22.487]
[1717596142500,0.4,172.44,172.33,121.97]
[1717596142704,0.4,172.44,172.35,34.8]
[1717596142877,0.4,172.44,172.36,55.14]
[1717596143072,0.4,172.44,172.37,45.0]
[1717596143298,0.4,172.44,172.38,20.34]
[1717596143480,0.4,172.44,172.39,45.0]
[1717596143678,0.4,172.44,172.4,0.17]
[1717596144079,0.4,172.44,172.4,0.34]
[1717596145708,0.4,172.44,172.41,6.2969]
[1717596146000,0.4,172.44,172.42,45.34]
[1717596146183,0.4,172.44,172.42,45.17]
[1717596147187,0.4,172.44,172.42,45.0]
[1717596147506,0.4,172.44,172.43,0.17]
[1717596147886,0.4,172.44,172.42,45.0]
[1717596149305,0.4,172.44,172.38,20.0]
[1717596149481,0.4,172.44,172.37,20.0]
[1717596150408,0.4,172.44,172.37,54.8]
[1717596150703,0.4,172.44,172.38,80.14]
[1717596150877,0.4,172.44,172.39,35.7377]
[1717596151079,0.4,172.44,172.4,45.34]
[1717596152205,0.4,172.44,172.4,45.17]
[1717596152407,6.4214,172.54,172.41,21.83]
[1717596152408,0.4,172.54,172.41,21.83]
[1717596152626,7.0213946,172.71,172.51,34.8]
[1717596152910,7.0213946,172.71,172.44,39.5737]
[1717596152911,4.2852,172.69,172.55,4.2884]
[1717596153207,4.2852,172.69,172.52,45.34]
[1717596153208,2.2582,172.64,172.57,2.1439]
[1717596153380,0.115,172.64,172.57,2.1439]
[1717596153581,2.2582,172.64,172.58,2.1439]
[1717596153884,0.115,172.64,172.56,45.0]
[1717596154089,2.1433,172.63,172.55,45.0]
[1717596154713,6.1046,172.61,172.55,45.0]
[1717596154911,6.1046,172.61,172.54,2.1444]
[1717596155082,6.1046,172.61,172.52,2.1446]
[1717596155284,6.1046,172.61,172.49,4.29]
[1717596155285,2.144,172.58,172.49,4.29]
[1717596155500,2.144,172.58,172.44,21.7537]
[1717596155501,20.0,172.6,172.44,21.927]
[1717596155696,20.0,172.6,172.4,6.0718]
[1717596155697,2.1441,172.56,172.4,55.8905]
[1717596155884,2.1441,172.56,172.46,4.2907]
[1717596156086,2.1443,172.55,172.49,2.145]
[1717596156591,2.1442,172.56,172.5,2.1449]
[1717596156920,2.144,172.57,172.5,2.1448]
[1717596157222,2.144,172.57,172.47,4.2905]
[1717596157399,2.144,172.57,172.5,2.1448]
[1717596157594,0.34,172.59,172.5,2.1448]
[1717596157595,2.1441,172.56,172.5,2.1448]
[1717596157903,2.144,172.57,172.51,2.1447]
[1717596158282,0.34,172.59,172.5,2.1449]
[1717596158283,2.1441,172.56,172.5,2.1449]
[1717596158490,2.1441,172.57,172.47,4.2905]
[1717596158685,2.1441,172.57,172.48,45.0]
[1717596159182,2.1441,172.56,172.48,45.0]